bitfinex/quotes_SOLUSD_20240712
["timestamp","ask_amount","ask_price","bid_price","bid_amount"]
[1720763548188,14.57,135.91,135.86,14.57]
[1720763550185,14.57,135.91,135.83,6.6406]
[1720763550383,14.57,135.91,135.86,14.57]
[1720763550900,21.9268,135.93,135.87,14.57]
[1720763551102,34.57,135.92,135.87,14.57]
[1720763551985,20.0,135.92,135.84,45.0]
[1720763552184,7.6514883,135.95,135.89,14.57]
[1720763552488,7.6514883,135.95,135.87,15.3109]
[1720763552489,21.927,135.93,135.87,15.3109]
[1720763552696,21.927,135.93,135.88,14.57]
[1720763552874,21.9262,135.94,135.89,14.57]
[1720763553078,14.57,135.94,135.89,14.57]
[1720763553583,20.0,135.93,135.89,14.57]
[1720763553780,34.57,135.93,135.88,14.57]
[1720763554003,20.0,135.93,135.89,14.57]
[1720763554699,15.0074883,135.95,135.89,14.57]
[1720763554904,14.57,135.94,135.89,14.57]
[1720763555105,21.9263,135.94,135.89,14.57]
[1720763555285,7.3569,135.93,135.89,14.57]
[1720763555486,7.3573,135.92,135.89,14.57]
[1720763555684,7.3573,135.92,135.87,29.8809]
[1720763555985,14.57,135.92,135.87,29.8809]
[1720763556190,14.57,135.93,135.88,14.57]
[1720763556381,21.9263,135.94,135.88,14.57]
[1720763556577,20.0,135.93,135.88,14.57]
[1720763556792,20.0,135.93,135.89,14.57]
[1720763557378,22.2214883,135.95,135.92,14.57]
[1720763557379,7.6514883,135.95,135.92,14.57]
[1720763557615,6.4673,136.01,135.94,14.57]
[1720763557778,21.9238,135.99,135.94,14.57]
[1720763558113,7.3545,135.97,135.93,14.57]
[1720763558881,7.3545,135.97,135.92,14.57]
[1720763559282,21.9242,135.98,135.92,14.57]
[1720763559482,14.57,135.98,135.93,14.57]
[1720763559703,14.57,135.99,135.94,14.57]
[1720763560015,41.9244,135.98,135.93,14.57]
[1720763560314,20.0,135.98,135.93,14.57]
[1720763560509,34.57,135.98,135.93,14.57]
[1720763560807,20.0,135.98,135.94,14.57]
[1720763560990,20.0,135.98,135.95,14.57]
[1720763561303,20.0,135.98,135.94,14.57]
[1720763562688,27.3541,135.98,135.94,14.57]
[1720763563507,27.3541,135.98,135.93,14.57]
[1720763564280,20.0,135.98,135.93,14.57]
[1720763564814,20.0,135.98,135.94,14.57]
[1720763567404,20.0,135.99,135.94,14.57]
[1720763567588,41.9236,135.99,135.94,14.57]
[1720763567785,7.3546,135.97,135.91,15.9602]
[1720763567985,41.9237,135.99,135.94,14.57]
[1720763568193,7.354,135.98,135.94,14.57]
[1720763570339,34.57,135.99,135.94,14.57]
[1720763570516,7.6480961,136.0,135.96,14.57]
[1720763570693,21.9225,136.01,135.96,14.57]
[1720763571212,37.2219,136.02,135.97,14.57]
[1720763571604,21.922,136.02,135.97,14.57]
[1720763571912,20.0,136.01,135.97,14.57]
[1720763572115,27.3525,136.01,135.97,14.57]
[1720763572604,7.3529,136.0,135.96,14.57]
[1720763573720,7.3536,135.99,135.96,14.57]
[1720763574601,7.353,136.0,135.96,14.57]
[1720763574804,34.57,136.01,135.96,14.57]
[1720763575105,41.9227,136.01,135.96,14.57]
[1720763578319,20.0,136.01,135.98,14.57]
[1720763578504,41.9218,136.02,135.95,16.6292]
[1720763578694,41.9218,136.02,135.97,14.57]
[1720763579308,41.9218,136.02,135.95,16.6292]
[1720763580837,34.57,136.02,135.95,16.6292]
[1720763581129,20.0,136.02,135.95,16.6292]
[1720763583399,20.0,136.02,135.96,45.0]
[1720763583608,20.0,136.03,135.95,16.6292]
[1720763583909,14.57,136.01,135.96,14.57]
[1720763584109,21.9226,136.01,135.96,14.57]
[1720763585314,7.3519,136.02,135.96,14.57]
[1720763585519,21.9219,136.02,135.97,14.57]
[1720763585732,7.3519,136.02,135.97,14.57]
[1720763587010,21.9219,136.02,135.97,14.57]
[1720763587212,7.3519,136.02,135.97,14.57]
[1720763588635,41.9215,136.03,135.95,16.6292]
[1720763588810,27.3515,136.03,135.98,14.57]
[1720763589716,41.9215,136.03,135.98,14.57]
[1720763590217,36.4915,136.03,135.98,14.57]
[1720763590614,16.4156,136.05,135.96,45.0]
[1720763590812,16.4156,136.05,136.0,14.57]
[1720763591216,23.7658,136.05,136.0,14.57]
[1720763591521,38.3358,136.05,136.0,14.57]
[1720763592019,38.3358,136.05,135.99,14.57]
[1720763592531,20.0,136.04,135.99,14.57]
[1720763593617,20.0,136.04,136.0,14.57]
[1720763594110,7.64936666,136.06,136.02,14.57]
[1720763594326,28.2189,136.07,136.02,14.57]
[1720763594739,14.57,136.06,136.01,14.57]
[1720763595043,21.9197,136.06,136.01,14.57]
[1720763595617,20.0,136.05,136.01,14.57]
[1720763595815,34.57,136.07,136.02,14.57]
[1720763596938,20.0,136.07,136.02,14.57]
[1720763597137,34.57,136.07,136.02,14.57]
[1720763597460,41.9195,136.07,136.02,14.57]
[1720763598431,20.0,136.07,136.01,14.57]
[1720763598621,34.57,136.07,136.02,14.57]
[1720763599142,41.9193,136.07,136.02,14.57]
[1720763599645,21.9203,136.05,135.96,60.5177]
[1720763599849,14.57,136.04,135.99,14.57]
[1720763600025,21.6508,136.05,135.96,15.5177]
[1720763600364,14.57,136.02,135.97,14.57]
[1720763600849,21.9215,136.03,135.97,14.57]
[1720763601034,20.0,136.02,135.97,14.57]
[1720763601240,27.352,136.02,135.97,14.57]
[1720763601425,7.3524,136.01,135.97,14.57]
[1720763601627,14.57,136.0,135.95,14.57]
[1720763601952,14.57,135.98,135.93,14.57]
[1720763602320,14.57,135.97,135.92,14.57]
[1720763604244,48.8284,135.99,135.92,14.57]
[1720763604425,14.57,135.98,135.92,14.57]
[1720763604623,14.57,135.97,135.92,14.57]
[1720763605025,14.57,135.97,135.89,15.3888]
[1720763605236,14.57,135.97,135.92,14.57]
[1720763608050,34.57,135.96,135.89,15.3888]
[1720763608352,14.57,135.95,135.9,14.57]
[1720763608842,21.9257,135.95,135.9,14.57]
[1720763609046,14.57,135.92,135.87,14.57]
[1720763609444,14.57,135.92,135.84,15.1329]
[1720763609445,34.57,135.94,135.89,14.57]
[1720763609856,20.0,135.94,135.9,14.57]
[1720763611429,20.0,135.94,135.89,14.57]
[1720763611637,34.57,135.94,135.89,14.57]
[1720763611835,41.9262,135.94,135.89,14.57]
[1720763612034,34.57,135.94,135.89,14.57]
[1720763612241,14.57,135.92,135.86,14.57]
[1720763612458,21.9273,135.92,135.86,14.57]
[1720763612634,20.0,135.91,135.86,14.57]
[1720763613049,20.0,135.91,135.87,14.57]
[1720763615851,27.3578,135.91,135.86,14.57]
[1720763617456,21.9285,135.9,135.84,15.1329]
[1720763617754,21.9285,135.9,135.85,14.57]
[1720763618451,14.57,135.9,135.85,14.57]
[1720763619158,14.57,135.9,135.8,74.5095]
[1720763619355,34.57,135.89,135.84,14.57]
[1720763619939,41.9289,135.89,135.84,14.57]
[1720763620265,7.3594,135.88,135.83,14.57]
[1720763620452,41.9291,135.89,135.83,14.57]
[1720763620640,34.57,135.89,135.84,14.57]
[1720763620971,20.0,135.89,135.85,14.57]
[1720763621264,20.0,135.9,135.85,14.57]
[1720763621659,27.3585,135.9,135.85,14.57]
[1720763621972,41.9285,135.9,135.85,14.57]
[1720763622143,7.3589,135.89,135.85,14.57]
[1720763622344,20.0,135.88,135.84,14.57]
[1720763622875,41.9296,135.88,135.8,16.2295]
[1720763623039,41.9296,135.88,135.83,14.57]
[1720763624636,34.57,135.88,135.83,14.57]
[1720763625262,14.57,135.87,135.81,45.0]
[1720763625446,14.57,135.87,135.82,14.57]
[1720763626148,14.57,135.85,135.75,16.1913]
[1720763626351,14.57,135.85,135.79,14.57]
[1720763626542,14.57,135.84,135.79,14.57]
[1720763626739,14.57,135.85,135.79,14.57]
[1720763627879,14.57,135.86,135.8,14.57]
[1720763628073,20.0,135.85,135.82,14.57]
[1720763628572,20.0,135.86,135.81,14.57]
[1720763628944,20.0,135.86,135.82,14.57]
[1720763629155,20.0,135.86,135.81,14.57]
[1720763629557,20.0,135.86,135.82,14.57]
[1720763629750,20.0,135.86,135.81,14.57]
[1720763630759,34.57,135.86,135.81,14.57]
[1720763631757,14.57,135.85,135.75,16.1913]
[1720763631965,14.57,135.84,135.79,14.57]
[1720763632271,14.57,135.83,135.75,16.1913]
[1720763632443,22.9912,135.84,135.78,14.57]
[1720763632643,20.0,135.83,135.79,14.57]
[1720763632862,20.0,135.83,135.75,16.1913]
[1720763633064,20.0,135.83,135.8,14.57]
[1720763633268,20.0,135.84,135.8,14.57]
[1720763633463,20.0,135.84,135.81,14.57]
[1720763633781,34.57,135.85,135.8,14.57]
[1720763634152,7.3617,135.84,135.8,14.57]
[1720763635066,7.3617,135.84,135.75,16.1913]
[1720763635067,7.3617,135.84,135.79,14.57]
[1720763635275,20.0,135.83,135.79,14.57]
[1720763635676,34.57,135.83,135.78,14.57]
[1720763636366,41.9323,135.83,135.78,14.57]
[1720763636871,34.57,135.83,135.78,14.57]
[1720763637063,20.0,135.83,135.79,14.57]
[1720763637377,20.0,135.83,135.8,14.57]
[1720763637584,20.0,135.84,135.8,14.57]
[1720763637894,34.57,135.84,135.79,14.57]
[1720763638062,41.9316,135.84,135.79,14.57]
[1720763640275,34.57,135.84,135.79,14.57]
[1720763640673,7.65177911,135.86,135.83,14.57]
[1720763640865,15.6292,135.87,135.83,14.57]
[1720763641181,6.4631,135.88,135.84,14.57]
[1720763641572,15.1067,135.86,135.75,15.3686]
[1720763641771,29.6767,135.86,135.8,14.57]
[1720763641977,15.1067,135.86,135.81,14.57]
[1720763642178,21.0331,135.88,135.82,14.57]
[1720763642376,20.0,135.87,135.83,14.57]
[1720763642681,20.0,135.87,135.82,14.57]
[1720763642909,34.57,135.87,135.82,14.57]
[1720763643062,41.9299,135.87,135.82,14.57]
[1720763643466,21.9306,135.86,135.81,14.57]
[1720763643698,21.9306,135.86,135.75,15.3686]
[1720763643990,14.57,135.86,135.81,14.57]
[1720763644696,20.0,135.87,135.82,14.57]
[1720763645584,20.0,135.87,135.8,30.4041]
[1720763645887,20.0,135.88,135.86,14.57]
[1720763646092,20.0,135.89,135.86,14.57]
[1720763647773,27.3589,135.89,135.85,14.57]
[1720763648183,41.9289,135.89,135.84,14.57]
[1720763648895,27.359,135.89,135.83,14.57]
[1720763649210,34.57,135.89,135.84,14.57]
[1720763649508,41.9291,135.89,135.84,14.57]
[1720763649704,41.9291,135.89,135.81,45.0]
[1720763649909,41.9291,135.89,135.83,14.57]
[1720763650204,14.57,135.87,135.82,14.57]
[1720763650421,21.93,135.87,135.8,15.8341]
[1720763650701,20.0,135.86,135.81,14.57]
[1720763650879,20.0,135.86,135.82,14.57]
[1720763651781,41.9305,135.86,135.81,14.57]
[1720763652490,34.57,135.86,135.81,14.57]
[1720763653600,41.9305,135.86,135.76,16.2727]
[1720763653908,41.9305,135.86,135.81,14.57]
[1720763654082,41.9305,135.86,135.8,14.57]
[1720763655916,34.57,135.86,135.81,14.57]
[1720763656610,41.9305,135.86,135.81,14.57]
[1720763657879,20.0,135.86,135.82,14.57]
[1720763659490,27.3606,135.86,135.82,14.57]
[1720763659993,41.9306,135.86,135.81,14.57]
[1720763660905,7.3611,135.85,135.81,14.57]
[1720763661107,20.0,135.84,135.81,14.57]
[1720763661880,20.0,135.85,135.83,14.57]
[1720763662086,16.2671,135.87,135.83,14.57]
[1720763662805,16.2671,135.87,135.84,14.57]
[1720763663009,16.2671,135.87,135.77,45.0]
[1720763663310,38.1974,135.87,135.82,14.57]
[1720763663516,20.0,135.86,135.82,14.57]
[1720763664088,20.0,135.86,135.83,14.57]
[1720763664504,20.0,135.86,135.84,14.57]
[1720763664702,20.0,135.88,135.84,14.57]
[1720763665206,37.12932455,135.9,135.85,14.57]
[1720763665431,4.47062949,135.89,135.85,14.57]
[1720763665626,37.12932455,135.9,135.85,14.57]
[1720763665800,4.47128604,135.89,135.86,14.57]
[1720763666002,29.77102455,135.9,135.86,14.57]
[1720763666214,4.47139627,135.89,135.86,14.57]
[1720763666521,20.0,135.89,135.86,14.57]
[1720763667003,20.0,135.89,135.81,16.1658]
[1720763667004,20.0,135.89,135.85,14.57]
[1720763667220,27.3591,135.89,135.85,14.57]
[1720763667400,4.47213151,135.88,135.85,14.57]
[1720763667598,20.0,135.88,135.84,14.57]
[1720763670425,20.0,135.88,135.85,14.57]
[1720763670589,20.0,135.89,135.85,14.57]
[1720763670790,4.47239711,135.88,135.85,14.57]
[1720763671096,20.0,135.89,135.85,14.57]
[1720763671097,27.3589,135.89,135.85,14.57]
[1720763671297,4.47239493,135.88,135.85,14.57]
[1720763671498,7.3594,135.88,135.81,16.1658]
[1720763671721,7.36,135.87,135.83,14.57]
[1720763671908,21.9296,135.88,135.83,14.57]
[1720763672108,24.47220112,135.87,135.83,14.57]
[1720763672304,20.0,135.87,135.83,14.57]
[1720763673901,20.0,135.87,135.84,14.57]
[1720763674101,20.0,135.89,135.85,14.57]
[1720763674306,4.47162858,135.88,135.86,14.57]
[1720763674512,4.47162956,135.88,135.86,14.57]
[1720763674825,20.0,135.89,135.86,14.57]
[1720763676526,27.3589,135.89,135.84,14.57]
[1720763676713,7.3594,135.88,135.84,14.57]
[1720763676918,21.9294,135.88,135.83,14.57]
[1720763677120,14.57,135.87,135.82,14.57]
[1720763677312,7.3605,135.86,135.81,14.57]
[1720763677500,28.475,135.87,135.81,14.57]
[1720763678012,28.475,135.87,135.82,14.57]
[1720763678326,13.905,135.87,135.83,14.57]
[1720763678917,6.5448,135.87,135.83,14.57]
[1720763679104,13.9049,135.87,135.83,14.57]
[1720763679426,11.83176669,135.86,135.82,14.57]
[1720763679618,21.9306,135.86,135.81,14.57]
[1720763680711,21.931,135.85,135.8,14.57]
[1720763681310,14.57,135.85,135.8,14.57]
[1720763681505,14.57,135.86,135.8,14.57]
[1720763681710,20.0,135.85,135.8,14.57]
[1720763682030,20.0,135.85,135.81,14.57]
[1720763682810,34.57,135.85,135.8,14.57]
[1720763683508,4.47088632,135.84,135.8,14.57]
[1720763683706,41.931,135.85,135.8,14.57]
[1720763683925,4.47137878,135.84,135.8,14.57]
[1720763684126,34.57,135.85,135.8,14.57]
[1720763685325,34.57,135.85,135.75,15.2349]
[1720763685326,14.57,135.83,135.75,15.2349]
[1720763685512,7.3633,135.81,135.73,64.8363]
[1720763685718,14.57,135.81,135.76,14.57]
[1720763685912,19.0394199,135.8,135.75,14.57]
[1720763686121,14.57,135.8,135.75,14.57]
[1720763686507,14.57,135.8,135.71,15.2349]
[1720763686508,21.9338,135.8,135.71,15.2349]
[1720763686824,14.57,135.8,135.74,14.57]
[1720763687334,14.57,135.8,135.75,14.57]
[1720763688211,20.0,135.79,135.75,14.57]
[1720763688616,20.0,135.79,135.74,14.57]
[1720763688818,34.57,135.79,135.74,14.57]
[1720763689809,20.0,135.79,135.72,0.44356801]
[1720763690037,14.57,135.79,135.74,14.57]
[1720763690942,20.0,135.78,135.74,14.57]
[1720763692220,35.1161,135.78,135.67,22.84462033]
[1720763692419,49.6861,135.78,135.73,14.57]
[1720763693456,6.5184,135.77,135.71,14.57]
[1720763693738,6.5184,135.77,135.7,14.57]
[1720763693739,14.57,135.75,135.7,14.57]
[1720763694130,14.57,135.73,135.64,15.1137]
[1720763694328,14.57,135.73,135.68,14.57]
[1720763694542,20.0,135.72,135.68,14.57]
[1720763695734,20.0,135.72,135.64,15.1137]
[1720763695937,34.57,135.72,135.67,14.57]
[1720763696536,20.0,135.72,135.64,15.1137]
[1720763697220,27.3682,135.72,135.64,15.1137]
[1720763697540,33.7046,135.72,135.63,0.8439493]
[1720763697929,33.7046,135.72,135.63,45.8439493]
[1720763698630,7.3688,135.71,135.63,0.8439493]
[1720763699116,20.0,135.7,135.63,0.8439493]
[1720763700431,20.0,135.71,135.63,0.8439493]
[1720763702539,23.8838679,135.73,135.64,29.27]
[1720763702746,29.2873,135.76,135.66,29.27]
[1720763703244,7.3665,135.75,135.67,46.47376367]
[1720763703448,7.3665,135.75,135.68,1.4736552]
[1720763704036,20.0,135.74,135.68,1.4736552]
[1720763704236,29.2876,135.76,135.68,1.4736552]
[1720763705438,27.3666,135.75,135.68,1.4736552]
[1720763707847,20.0,135.75,135.68,1.4736552]
[1720763708148,7.65572226,135.77,135.71,29.27]
[1720763708320,7.65572226,135.77,135.67,61.3856]
[1720763708321,7.3649,135.78,135.69,29.27]
[1720763708524,22.3057,135.79,135.7,45.0]
[1720763708725,7.3655,135.77,135.69,1.47306304]
[1720763709352,27.366,135.76,135.69,1.47306304]
[1720763709741,20.0,135.76,135.68,74.27]
[1720763709939,20.0,135.76,135.68,45.0]
[1720763710360,27.366,135.76,135.68,45.0]
[1720763710562,20.0,135.76,135.67,16.3856]
[1720763710766,7.3665,135.75,135.67,16.3856]
[1720763711054,20.0,135.74,135.67,16.3856]
[1720763711258,29.6701,135.79,135.67,45.6556]
[1720763711433,22.3057,135.79,135.69,29.27]
[1720763711637,22.3057,135.79,135.71,29.27]
[1720763711838,29.67,135.79,135.72,45.0]
[1720763712048,29.67,135.79,135.7,45.0]
[1720763712533,7.3649,135.78,135.7,45.0]
[1720763712730,22.3057,135.79,135.7,45.0]
[1720763712934,20.0,135.78,135.7,45.0]
[1720763716754,20.0,135.78,135.74,14.62]
[1720763716958,27.3649,135.78,135.74,14.62]
[1720763717342,41.9849,135.78,135.73,14.62]
[1720763718743,34.62,135.78,135.73,14.62]
[1720763719339,20.0,135.78,135.74,14.62]
[1720763719852,20.0,135.78,135.76,14.62]
[1720763720054,37.2076,135.82,135.77,14.62]
[1720763720255,20.0,135.81,135.77,14.62]
[1720763720640,20.0,135.81,135.73,29.22]
[1720763720960,20.0,135.81,135.74,45.0]
[1720763722362,27.3633,135.81,135.74,45.0]
[1720763722566,20.0,135.81,135.74,45.0]
[1720763723065,20.0,135.81,135.75,1.47075503]
[1720763723672,27.3633,135.81,135.75,1.47075503]
[1720763725661,7.3638,135.8,135.74,45.0]
[1720763725865,20.0,135.79,135.74,45.0]
[1720763726066,7.3638,135.8,135.74,45.0]
[1720763726960,7.3638,135.8,135.75,1.17716664]
[1720763727744,20.0,135.79,135.75,1.17716664]
[1720763728073,29.9507,135.82,135.75,1.17716664]
[1720763728462,22.5876,135.82,135.75,1.17716664]
[1720763728667,7.3634,135.81,135.74,45.0]
[1720763728847,7.364,135.8,135.74,45.0]
[1720763729667,7.3634,135.81,135.74,45.0]
[1720763731571,29.9504,135.82,135.74,45.0]
[1720763731768,20.0,135.81,135.74,45.0]
[1720763733362,27.3634,135.81,135.74,45.0]
[1720763734071,20.0,135.81,135.74,45.0]
[1720763738362,20.0,135.81,135.75,0.83005224]
[1720763739782,20.0,135.81,135.74,45.0]
[1720763740382,7.365,135.78,135.72,15.4648]
[1720763740559,7.3662,135.76,135.69,16.4992]
[1720763740879,58.48,135.8,135.69,31.1192]
[1720763740880,14.62,135.74,135.69,31.1192]
[1720763741084,14.62,135.75,135.7,14.62]
[1720763741471,14.62,135.75,135.69,16.4992]
[1720763741671,21.9867,135.75,135.69,31.1192]
[1720763741865,34.62,135.74,135.69,31.1192]
[1720763742079,34.62,135.74,135.68,14.62]
[1720763743655,14.62,135.73,135.67,14.62]
[1720763744561,14.62,135.73,135.65,15.7019]
[1720763744562,20.0,135.72,135.65,15.7019]
[1720763745668,27.3681,135.72,135.65,15.7019]
[1720763745868,7.3687,135.71,135.63,0.8439493]
[1720763746486,13.71845537,135.75,135.67,29.27]
[1720763746779,20.0,135.74,135.65,29.27]
[1720763747364,6.0114,135.75,135.66,45.0]
[1720763747681,16.2127,135.76,135.66,45.0]
[1720763747863,6.0366,135.78,135.68,29.27]
[1720763748058,6.0366,135.78,135.69,1.00945932]
[1720763748280,13.4015,135.78,135.69,1.00945932]
[1720763748470,13.4015,135.78,135.7,1.4735259]
[1720763748668,7.3655,135.77,135.69,1.47356159]
[1720763749088,20.0,135.76,135.68,29.27]
[1720763749887,20.0,135.76,135.69,1.47162904]
[1720763751688,20.0,135.76,135.68,29.27]
[1720763753474,27.366,135.76,135.68,29.27]
[1720763754889,20.0,135.76,135.69,16.3471]
[1720763755084,20.0,135.77,135.7,45.0]
[1720763755270,27.3648,135.78,135.7,74.27]
[1720763755471,7.3656,135.77,135.7,45.0]
[1720763755681,20.0,135.76,135.7,45.0]
[1720763755891,27.3661,135.76,135.7,45.0]
[1720763756080,27.3661,135.76,135.69,16.3471]
[1720763757290,7.3665,135.75,135.69,16.3471]
[1720763757466,27.3659,135.76,135.69,16.3471]
[1720763760884,20.0,135.76,135.69,16.3471]
[1720763763483,20.0,135.78,135.7,45.0]
[1720763763683,27.365,135.78,135.7,45.0]
[1720763763886,7.3654,135.77,135.69,16.3471]
[1720763764099,20.0,135.76,135.69,16.3471]
[1720763766705,20.0,135.77,135.72,14.62]
[1720763767595,29.68866584,135.8,135.69,16.3471]
[1720763767796,29.68866584,135.8,135.75,14.62]
[1720763768897,20.0,135.79,135.75,14.62]
[1720763770096,29.6736,135.83,135.77,14.62]
[1720763770298,37.0361,135.83,135.77,14.62]
[1720763770609,37.0361,135.83,135.78,14.62]
[1720763770812,15.0536,135.83,135.78,14.62]
[1720763771114,31.39438644,135.84,135.79,14.62]
[1720763771292,20.0,135.83,135.79,14.62]
[1720763771491,7.3612,135.85,135.74,16.2211]
[1720763771711,7.3612,135.85,135.81,14.62]
[1720763771912,45.91907844,135.86,135.81,14.62]
[1720763772089,23.5967,135.86,135.81,14.62]
[1720763772291,38.2167,135.86,135.81,14.62]
[1720763773320,20.0,135.85,135.81,14.62]
[1720763774599,20.0,135.85,135.82,14.62]
[1720763777410,27.3613,135.85,135.82,14.62]
[1720763777609,7.3617,135.84,135.77,6.3787]
[1720763777793,7.3617,135.84,135.8,14.62]
[1720763778415,7.3618,135.84,135.8,14.62]
[1720763778714,7.3621,135.83,135.75,1.47278333]
[1720763778898,7.3621,135.83,135.78,14.62]
[1720763779224,7.3621,135.83,135.75,1.47278333]
[1720763779427,7.3621,135.83,135.79,14.62]
[1720763780118,21.9817,135.84,135.79,14.62]
[1720763781206,7.3621,135.83,135.74,16.2211]
[1720763781410,20.0,135.82,135.78,14.62]
[1720763782020,20.0,135.83,135.78,14.62]
[1720763783424,20.0,135.83,135.79,14.62]
[1720763784101,34.62,135.83,135.78,14.62]
[1720763784424,20.0,135.83,135.78,14.62]
[1720763784803,27.3621,135.83,135.78,14.62]
[1720763784996,41.9821,135.83,135.78,14.62]
[1720763785902,27.3621,135.83,135.78,14.62]
[1720763786722,27.3621,135.83,135.79,14.62]
[1720763786909,27.3621,135.83,135.78,14.62]
[1720763787821,41.9821,135.83,135.74,16.2211]
[1720763788116,41.9821,135.83,135.78,14.62]
[1720763788702,41.9821,135.83,135.77,14.62]
[1720763789809,41.9821,135.83,135.78,14.62]
[1720763790126,34.62,135.83,135.78,14.62]
[1720763790934,20.0,135.83,135.8,14.62]
[1720763791106,20.0,135.84,135.8,14.62]
[1720763791728,20.0,135.84,135.79,14.62]
[1720763792101,20.0,135.84,135.8,14.62]
[1720763794021,41.9816,135.84,135.79,14.62]
[1720763797333,34.62,135.84,135.79,14.62]
[1720763797905,20.0,135.84,135.8,14.62]
[1720763799812,20.0,135.84,135.74,16.2211]
[1720763800027,27.3618,135.84,135.79,14.62]
[1720763800218,41.9818,135.84,135.79,14.62]
[1720763800828,7.3622,135.83,135.75,45.0]
[1720763801037,34.62,135.82,135.77,14.62]
[1720763801232,14.62,135.81,135.74,16.2211]
[1720763801438,14.62,135.81,135.76,14.62]
[1720763802210,30.9848,135.81,135.7,22.5362]
[1720763802416,30.9848,135.81,135.76,14.62]
[1720763804017,16.3648,135.81,135.77,14.62]
[1720763804712,16.3648,135.81,135.76,14.62]
[1720763806138,16.3648,135.81,135.7,22.5362]
[1720763806322,30.9848,135.81,135.76,14.62]
[1720763808027,16.3648,135.81,135.76,14.62]
[1720763809032,42.32175121,135.82,135.73,14.62]
[1720763809033,27.70175121,135.82,135.79,14.62]
[1720763809216,20.0,135.82,135.79,14.62]
[1720763809423,18.8214147,135.85,135.73,58.48]
[1720763809424,6.5981,135.87,135.81,14.62]
[1720763809727,4.46406024,135.86,135.82,14.62]
[1720763809932,21.2181,135.87,135.82,14.62]
[1720763810145,4.46422981,135.86,135.82,14.62]
[1720763810324,28.5781,135.87,135.82,14.62]
[1720763810517,4.46444638,135.86,135.82,14.62]
[1720763810741,7.3607,135.86,135.82,14.62]
[1720763811337,4.46441181,135.85,135.82,14.62]
[1720763811522,20.0,135.85,135.82,14.62]
[1720763813623,20.0,135.85,135.83,14.62]
[1720763813826,20.0,135.86,135.8,30.2728]
[1720763814039,4.46427901,135.85,135.81,1.47200455]
[1720763814321,20.0,135.86,135.84,14.62]
[1720763814523,4.46439514,135.85,135.84,14.62]